Cogmind - Beta 15 @@@ ROGUE MODE // 2025.05.19 @ 12:32:43 Player: Darcyisverycute Result: Destroyed by DAS Turret with DAS Cannon Performance ------------- Evolutions (1) 500 Regions Visited (5) 1000 Robots Destroyed (52) 260 Value Destroyed (837) 837 Prototype IDs (24) 480 Alien Tech Used (0) 0 Bonus (387) 387 TOTAL SCORE: 3464 Bonus ------- Follower Combat Kills 109 Aligned with FarCom 300 Friendly Fire -22 Cogmind --------- Core Integrity 0/400 Matter 75/300 Energy 100/100 System Corruption 0% Temperature Cool (0) Movement Core (50) Location -9/Exiles Parts ------- > --- POWER (1) -------- (None) > --- PROPULSION (3) --- (None) > --- UTILITY (2) ------ (None) > --- WEAPON (3) ------- Mini Grenade Launcher > --- INVENTORY (5) ---- (None) Peak State ------------ > --- POWER ------------ Ion Engine > --- PROPULSION ------- Light Treads Light Treads Light Treads > --- UTILITY ---------- Heavy Armor Plating > --- WEAPON ----------- Minigun Minigun Mini Grenade Launcher > --- INVENTORY -------- Modified TNC Chronowheel AWS/Thermal [Rating: 21] Favorites ----------- Power Ion Engine Engine Ion Engine Propulsion Light Treads Treads Light Treads Leg Aluminum Leg Wheel Compact Wheel Utility Seismic Detector Device Seismic Detector Storage Huge Storage Unit Protection Heavy Armor Plating Weapon Minigun Energy Gun EM Pulse Gun Energy Cannon Advanced Beam Cannon Ballistic Gun Minigun Ballistic Cannon Light Cannon Launcher Mini Grenade Launcher Build | -11 -10 -10 -9 -9 -9 ------- Run | Yrd Mat Min Mat Min Exi Slots Evolved 2 | . . . 2 . . Power . | . . . . . . Propulsion 1 | . . . 1 . . Utility . | . . . . . . Weapon 1 | . . . 1 . . Parts Attached 39 | 8 3 4 11 1 12 Power 3 | 1 . . 1 . 1 Engine 3 | 1 . . 1 . 1 Core . | . . . . . . Reactor . | . . . . . . Propulsion 14 | 2 . 3 5 . 4 Treads 6 | 2 . . . . 4 Leg 4 | . . 2 2 . . Wheel 4 | . . 1 3 . . Hover . | . . . . . . Flight . | . . . . . . Utility 8 | 2 2 . 1 . 3 Device 2 | 1 1 . . . . Storage 3 | 1 1 . 1 . . Processor . | . . . . . . Hackware . | . . . . . . Protection 3 | . . . . . 3 Artifact . | . . . . . . Weapon 14 | 3 1 1 4 1 4 Energy Gun 2 | 2 . . . . . Energy Cannon 1 | . . . 1 . . Ballistic Gun 9 | 1 . 1 3 . 4 Ballistic Cannon 1 | . 1 . . . . Launcher 1 | . . . . 1 . Special Weapon . | . . . . . . Impact Weapon . | . . . . . . Slashing Weapon . | . . . . . . Piercing Weapon . | . . . . . . Special Melee Weapon . | . . . . . . Unidentified Prototypes 1 | . . . 1 . . Parts Lost 18 | . . 1 2 1 14 Power 3 | . . . 1 1 1 Propulsion 6 | . . 1 1 . 4 Utility 2 | . . . . . 2 Weapon 7 | . . . . . 7 Highest Loss Streak 9 | . . 1 1 1 9 To Critical Strikes 4 | . . . . . 4 Average Backups 13 | 2 12 22 20 21 4 Power 1 | . 1 2 1 1 1 Propulsion 2 | . . 3 5 6 . Utility 3 | . 3 5 7 7 1 Weapon 5 | 1 7 11 5 7 1 Tool/Special . | . . . . . . Unused Backups 33 | . 1 2 16 . 14 Power 6 | . . 2 1 . 3 Propulsion 2 | . . . 1 . 1 Utility 11 | . 1 . 4 . 6 Weapon 13 | . . . 10 . 3 Tool/Special 1 | . . . . . 1 Average Slot Usage (%) 95 | . 99 100 98 96 87 Engine 11 | . 14 14 10 7 9 Treads 19 | . 28 17 . . 28 Leg 2 | . . 6 13 . . Wheel 8 | . . 4 17 33 4 Device 9 | . 13 14 11 11 1 Storage 9 | . 14 14 11 11 1 Protection 3 | . . . . . 9 Ballistic Gun 20 | . 14 14 32 23 23 Ballistic Cannon 5 | . 10 14 . . . Launcher 4 | . . . . 9 9 Peak Build Rating 21 | 7 9 12 20 20 21 Average Rating 14 | 6 7 10 19 18 18 On Entrance 10 | . 7 9 11 20 18 Naked Turns . | . . . . . . Heaviest Build 95 | 15 91 91 95 93 93 Greatest Support 60 | 40 40 40 42 42 60 Greatest Overweight (x) 6 | . 2 6 5 2 2 Average Overweight (x) 1 | . . 3 2 2 . Largest Inventory Capacity 25 | 8 25 25 25 25 25 Average Capacity 16 | 7 18 25 25 25 7 Most Carried 25 | 4 19 25 25 25 25 Average Carried 14 | 2 12 22 24 25 5 Final Capacity 25 | 8 25 25 25 25 5 Final Carried 25 | 4 19 25 25 25 . Class Distribution -------------------- 47% | Mutant 27% | Scavenger-Tank 16% | Gunner 7% | Scavenger-Gunner Dominant Class ---------------- Mutant | -10/Materials Mutant | -10/Mines Gunner | -9/Materials Scavenger-Gunner | -9/Mines Scavenger-Tank | -9/Exiles Resources | -11 -10 -10 -9 -9 -9 ----------- Run | Yrd Mat Min Mat Min Exi Matter Collected 2166 | 264 556 194 429 111 612 Remotely . | . . . . . . Salvage Created 1743 | 116 602 211 501 183 130 Parts 117 | 9 37 16 35 14 6 Haulers Intercepted 2 | . 1 . 1 . . Recyclers Shooed 1 | . . . . 1 . Parts Field Recycled . | . . . . . . Retrieved Matter . | . . . . . . Parts Self-Destructed . | . . . . . . Prevented . | . . . . . . Kills | -11 -10 -10 -9 -9 -9 ------- Run | Yrd Mat Min Mat Min Exi Combat Hostiles Destroyed 33 | . 11 3 8 6 5 Guns 21 | . 6 2 8 2 3 Cannons 5 | . 4 1 . . . AOE 7 | . 1 . . 4 2 Classes Destroyed 11 | 2 6 . 1 1 1 Worker 3 | . 1 1 1 . . Builder 1 | . 1 . . . . Tunneler 4 | 2 1 1 . . . Hauler 2 | . 1 . 1 . . Recycler 7 | 1 2 2 1 1 . Watcher 6 | . 3 . 3 . . Swarmer 16 | . 6 3 3 4 . Grunt 7 | . 5 . 1 1 . Duelist 1 | . . . . 1 . Sentry 4 | . . . 4 . . Assembled 4 | . . . . . 4 Best Kill Streak 5 | 2 4 5 5 4 3 Combat Bots Only 4 | . 3 3 4 4 3 Max Kills in Single Turn 3 | 1 1 2 1 3 1 Gunslinging . | . . . . . . Exploded 3 | . 1 . . 3 1 Melee . | . . . . . . Uniques/NPCs Destroyed 1 | . . . . . 1 8R-AWN (-9/Exiles) Combat | -11 -10 -10 -9 -9 -9 -------- Run | Yrd Mat Min Mat Min Exi Hostile Shots Fired 199 | . 42 7 28 7 115 Missed 46 | . 8 . 10 2 26 Hits 153 | . 34 7 18 5 89 Melee 3 | . . . . 3 . Projectile 150 | . 34 7 18 2 89 Critical Strikes 31 | . . . . 1 30 Damage Taken 3169 | . 357 119 267 109 2317 Core 466 | . 35 9 35 . 387 Absorbed by Shields . | . . . . . . Core Remaining (%) 91 | 100 . 82 . . . Volleys Fired 162 | 5 38 14 28 8 69 Largest 3 | 1 2 2 3 3 3 Hottest 80 | 20 60 50 75 75 80 Shots Fired 372 | 5 76 28 84 18 161 Gun 319 | 5 54 14 84 16 146 Cannon 36 | . 22 14 . . . Launcher 17 | . . . . 2 15 Special . | . . . . . . Kinetic 339 | 5 60 28 84 16 146 Thermal . | . . . . . . Explosive 17 | . . . . 2 15 Electromagnetic 16 | . 16 . . . . Robot Hit Streak 15 | 5 10 6 12 15 9 Robot Miss Streak 8 | . 5 2 4 1 8 Penetration Max . | . . . . . . Secondary Targets 3 | . . . 2 1 . Max Gunslinging Chain 1 | . . . 1 1 . Shots Hit Robots 207 | 5 40 18 43 13 88 Core Hits 91 | 3 24 9 18 8 29 Critical Kills . | . . . . . . Critical Parts Destroyed . | . . . . . . Critical Strikes 2 | . 1 1 . . . Blast 2 | . 1 1 . . . Melee Attacks . | . . . . . . Impact . | . . . . . . Slashing . | . . . . . . Piercing . | . . . . . . Sneak Attacks . | . . . . . . Combat Hostiles . | . . . . . . Follow-up Attacks . | . . . . . . Damage Inflicted 3801 | 67 628 296 788 423 1599 Guns 2836 | 67 346 123 788 206 1306 Cannons 394 | . 221 173 . . . Explosions 571 | . 61 . . 217 293 Melee . | . . . . . . Ramming . | . . . . . . Kinetic 3127 | 67 464 296 788 206 1306 Thermal 61 | . 61 . . . . Explosive 510 | . . . . 217 293 Electromagnetic 103 | . 103 . . . . Impact . | . . . . . . Slashing . | . . . . . . Piercing . | . . . . . . Highest Corruption . | . . . . . . Average Corruption . | . . . . . . Corruption Purged . | . . . . . . Corruption Blocked . | . . . . . . Overload Shots . | . . . . . . Overflow Damage . | . . . . . . Projectiles . | . . . . . . Explosions . | . . . . . . Melee . | . . . . . . Knockbacks 5 | . 1 4 . . . Impact . | . . . . . . Kinetic 5 | . 1 4 . . . Secondary . | . . . . . . Self-Inflicted Damage 18 | . . . . . 18 Shots 2 | . . . . . 2 Rammed . | . . . . . . Targets Rammed . | . . . . . . Kicked . | . . . . . . Crushed . | . . . . . . Highest Temperature 363 | . 12 10 127 66 363 Average Temperature 123 | . 6 7 39 22 180 Received Heat Transfer 171 | . 60 . 111 . . Effects 5 | . . . . . 5 Shutdowns 2 | . . . . . 2 Energy Bleed 1 | . . . . . 1 Matter Decay 1 | . . . . . 1 Damage (minor) 1 | . . . . . 1 Siege Activations . | . . . . . . Martial Activations . | . . . . . . Shielding Activations . | . . . . . . Robots Disrupted . | . . . . . . Combat Hostiles . | . . . . . . Robots Corrupted . | . . . . . . Combat Hostiles . | . . . . . . Parts Fried . | . . . . . . Impact Corruptions . | . . . . . . Robots Melted . | . . . . . . Combat Hostiles . | . . . . . . Parts Melted 1 | . . . 1 . . Heat Transferred 50 | . 50 . . . . Parts Sabotaged . | . . . . . . Parts Stolen . | . . . . . . Parts Stripped . | . . . . . . Power Chain Reactions 1 | . 1 . . . . Alert | -11 -10 -10 -9 -9 -9 ------- Run | Yrd Mat Min Mat Min Exi Maximum Alert Level . | . . . . . . Low Security (%) 100 | 100 100 100 100 100 . Level 1 . | . . . . . . Level 2 . | . . . . . . Level 3 . | . . . . . . Level 4 . | . . . . . . Level 5 . | . . . . . . High Security . | . . . . . . Max Security . | . . . . . . Peak Influence 188 | 5 111 76 188 113 . Initial 63 | . . . . 63 . Average 37 | . 31 12 102 47 . Influence Increases 1096 | 15 349 147 426 159 . Destroy 0b10 Robot/C 660 | . 220 100 220 120 . Destroy 0b10 Robot/NC 120 | 15 45 20 35 5 . Destroy Leader 168 | . 48 20 80 20 . Allied During Kill 23 | . . 7 16 . . Successful Hack 14 | . . . 14 . . Select Force Hacks 60 | . 30 . 30 . . Disable Machine 30 | . . . 30 . . Destroy Structure 21 | . 6 . 1 14 . Influence Decreases 1096 | 15 349 147 264 281 40 Entered New Map 139 | . . . . 99 40 Time Decay 917 | 15 349 147 224 182 . Lost Part 20 | . . . 20 . . Lost Ally 20 | . . . 20 . . Squads Dispatched 5 | . 4 . 1 . . Investigation 2 | . 1 . 1 . . Extermination . | . . . . . . Reinforcement 3 | . 3 . . . . Assault . | . . . . . . Garrison . | . . . . . . Intercept . | . . . . . . Searches Triggered . | . . . . . . Construction Impeded . | . . . . . . Haulers Reinforced . | . . . . . . Active Scanning Responses . | . . . . . . Cargo Convoy Interrupts . | . . . . . . Stealth | -11 -10 -10 -9 -9 -9 --------- Run | Yrd Mat Min Mat Min Exi Distress Signals 2 | . 1 . 1 . . Communications Jammed . | . . . . . . Distress Signals . | . . . . . . Times Spotted 53 | . 19 5 18 5 6 Peak Tracking Total 9 | . 4 3 6 4 9 Tactical Retreats . | . . . . . . Traps | -11 -10 -10 -9 -9 -9 ------- Run | Yrd Mat Min Mat Min Exi Traps Triggered 1 | . 1 . . . . Indirectly . | . . . . . . Trap Hack Attempts . | . . . . . . Triggered . | . . . . . . Disarmed . | . . . . . . Reprogrammed . | . . . . . . Reused . | . . . . . . Traps Extracted . | . . . . . . Installed . | . . . . . . Triggered . | . . . . . . Machines | -11 -10 -10 -9 -9 -9 ---------- Run | Yrd Mat Min Mat Min Exi Machines Disabled 11 | . . . 2 . 9 Max in Single Turn 2 | . . . 1 . 2 Machines Repaired . | . . . . . . Machines Dismantled . | . . . . . . Machines Sabotaged . | . . . . . . Overloaded Fab Kills . | . . . . . . Hacking | -11 -10 -10 -9 -9 -9 --------- Run | Yrd Mat Min Mat Min Exi Machines Accessed 7 | . 3 1 2 . 1 Terminals 3 | . 2 . 1 . . Fabricators . | . . . . . . Repair Stations . | . . . . . . Recycling Units 2 | . 1 . 1 . . Scanalyzers . | . . . . . . Garrison Access . | . . . . . . Total Hacks 10 | . 5 1 3 . 1 Successful 8 | . 4 1 2 . 1 Failed 2 | . 1 . 1 . . Catastrophic 1 | . . . 1 . . Database Lockouts . | . . . . . . Manual 5 | . 3 . 1 . 1 Terminals 5 | . 3 . 2 . . Fabricators . | . . . . . . Repair Stations . | . . . . . . Recycling Units 3 | . 2 . 1 . . Scanalyzers . | . . . . . . Garrison Access . | . . . . . . Terminal Hacks 5 | . 2 1 1 . 1 Open Door 1 | . . 1 . . . Alert Level 1 | . 1 . . . . Locate Traps 2 | . 1 . 1 . . Proto ID Catalog 1 | . . . . . 1 Fabricator Hacks . | . . . . . . Repair Station Hacks . | . . . . . . Recycling Unit Hacks . | . . . . . . Scanalyzer . | . . . . . . Garrison Access Hacks . | . . . . . . Unauthorized Hacks 3 | . 2 . 1 . . Terminals 1 | . 1 . . . . Skim 1 | . 1 . . . . Fabricators . | . . . . . . Repair Stations . | . . . . . . Recycling Units 2 | . 1 . 1 . . Tunnel 2 | . 1 . 1 . . Scanalyzers . | . . . . . . Garrison Access . | . . . . . . Data Cores Recovered . | . . . . . . Used . | . . . . . . Hacking Detections 3 | . 2 . 1 . . Full Trace Events . | . . . . . . Feedback Events . | . . . . . . Feedback Blocked . | . . . . . . Robot Schematics Acquired . | . . . . . . Robots Built . | . . . . . . Authchips . | . . . . . . Time . | . . . . . . Total Robot Build Rating . | . . . . . . Part Schematics Acquired . | . . . . . . Parts Built . | . . . . . . Authchips . | . . . . . . Time . | . . . . . . Total Part Build Rating . | . . . . . . Parts Repaired . | . . . . . . Time . | . . . . . . Parts Recycled . | . . . . . . Recycled Matter . | . . . . . . Retrieved Matter . | . . . . . . Retrieved Components . | . . . . . . Parts Scanalyzed . | . . . . . . Part Schematics Acquired . | . . . . . . Parts Damaged . | . . . . . . Bothacking | -11 -10 -10 -9 -9 -9 ------------ Run | Yrd Mat Min Mat Min Exi Used RIF Installer . | . . . . . . Robots Hacked . | . . . . . . Non-combat . | . . . . . . Combat . | . . . . . . Robot Hacks Applied . | . . . . . . Relay Couplers Released . | . . . . . . Fabnet Peak Effective % . | . . . . . . Robots Rewired . | . . . . . . Allies Hacked . | . . . . . . Hacks Repelled . | . . . . . . Allies | -11 -10 -10 -9 -9 -9 -------- Run | Yrd Mat Min Mat Min Exi Total Allies 3 | . . 3 . . . Largest Group 3 | . . 3 1 . . Highest-Rated Group 40 | . . 40 16 . . Highest-Rated Ally 16 | . . 16 16 . . Total Orders . | . . . . . . Ally Attacks 28 | . . 9 19 . . Total Damage 347 | . . 77 270 . . Kills 6 | . . 2 4 . . Allies Corrupted . | . . . . . . Allies Melted . | . . . . . . Intel | -11 -10 -10 -9 -9 -9 ------- Run | Yrd Mat Min Mat Min Exi Active Infowar (turns) 3812 | 284 1167 1021 601 545 194 Seismic 3812 | 284 1167 1021 601 545 194 Robot Analysis Total . | . . . . . . Derelict Logs Recovered 2 | . . 1 . 1 . Drone Launches . | . . . . . . Drone Recoveries . | . . . . . . Exploration | -11 -10 -10 -9 -9 -9 ------------- Run | Yrd Mat Min Mat Min Exi Turns Passed 5381 | 340 1180 1021 601 545 1694 Spaces Moved 2504 | 200 429 375 318 246 936 Core 4 | 4 . . . . . Treads 1590 | 196 429 185 . . 780 Legs 16 | . . 7 9 . . Wheels 894 | . . 183 309 246 156 Hover . | . . . . . . Flight . | . . . . . . Fastest Speed 50 | 50 160 175 123 123 93 Average Speed 179 | 157 239 253 147 123 153 Slowest Speed 540 | 160 320 540 330 123 240 Overloaded Moves . | . . . . . . Propulsion Burnouts . | . . . . . . Robots Hopped . | . . . . . . Potential Cave-ins . | . . . . . . Cave-ins Triggered . | . . . . . . Exploration Rate (%) 51 | 8 78 70 39 46 68 Regions Visited 5 Branch Regions 3 Pre-discovered Areas 4 | . 1 1 1 1 . Known Exits Taken . | . . . . . . Unknown Exits Taken 5 | 1 1 1 1 1 . Scrap Searched . | . . . . . . Spaces Dug . | . . . . . . Terrain Destroyed 65 | . 3 . . 15 47 Melee . | . . . . . . Projectile 2 | . . . . . 2 AOE 63 | . 3 . . 15 45 Terrain Rammed . | . . . . . . Walls Destroyed . | . . . . . . Machines Disabled . | . . . . . . Actions | -11 -10 -10 -9 -9 -9 --------- Run | Yrd Mat Min Mat Min Exi Total 3122 | 216 507 423 413 476 1087 Wait 273 | . 16 12 10 222 13 Move 2499 | 199 428 374 317 245 936 Hop . | . . . . . . Pick Up 72 | 4 17 12 19 . 20 Fast Attach 18 | 7 . . 8 . 3 Attach 11 | . 1 1 2 . 7 Detach 1 | . 1 . . . . Swap 18 | 1 3 3 2 1 8 Drop 68 | . 3 7 27 . 31 Fire 162 | 5 38 14 28 8 69 Melee . | . . . . . . Ram . | . . . . . . Kick . | . . . . . . Crush . | . . . . . . Escape Stasis . | . . . . . . Rewire . | . . . . . . Trap . | . . . . . . Miscellaneous . | . . . . . . Route ------- -11/Scrapyard -10/Materials (discovered 3 exits: *Mat x2 / *Min) -10/Mines (discovered 2 exits: *Mat x2) -9/Materials (discovered 2 exits: [*Mat] / [*Min]) -9/Mines (discovered 2 exits: [*Mat] / *Exi) -9/Exiles History --------- Turn | Location | Event 8 | -11/Scrapyard | Discovered new exit (range 14) 341 | -11/Scrapyard | Entered Materials 342 | -10/Materials | Build established: Mutant 585 | -10/Materials | Discovered new exit (range 4) 862 | -10/Materials | Discovered new exit (range 10) 1437 | -10/Materials | Discovered new exit (range 12) 1521 | -10/Materials | Entered Mines 1544 | -10/Mines | Found a damaged Exp. Sensor Array with a note attached 1550 | -10/Mines | Found Prototype Device 1621 | -10/Mines | Met a Derelict bent on vengeance 1628 | -10/Mines | Learned location of Zion (-6) 1762 | -10/Mines | Assisted by bots powering up and referring to "LRC-V3" 2015 | -10/Mines | Met a Derelict who couldn't figure out how to use a Trap Extractor 2519 | -10/Mines | Discovered new exit (range 5) 2530 | -10/Mines | Discovered new exit (range 5) 2542 | -10/Mines | Entered Materials 2542 | -9/Materials | Accompanied by 1 ally 2542 | -9/Materials | Evolved 2 slots: Propulsion x1, Weapon x1 2806 | -9/Materials | Discovered new exit (range 15) 2872 | -9/Materials | Build established: Gunner 3045 | -9/Materials | Discovered new exit (range 16) 3143 | -9/Materials | Entered Mines 3197 | -9/Mines | Assembled infested the area 3389 | -9/Mines | Build established: Scavenger-Gunner 3675 | -9/Mines | Discovered new exit (range 5) 3683 | -9/Mines | Discovered new exit (range 5) 3688 | -9/Mines | Entered Exiles 3718 | -9/Exiles | Met 8R-AWN 3736 | -9/Exiles | Met EX-HEX 3786 | -9/Exiles | Met EX-DEC 3807 | -9/Exiles | Build established: Gunner 4141 | -9/Exiles | Build established: Scavenger-Tank 4223 | -9/Exiles | Met EX-BIN 4242 | -9/Exiles | Aligned with FarCom system 4244 | -9/Exiles | Given EX-Vault access code 4324 | -9/Exiles | Opened EX-Vault 4365 | -9/Exiles | Warned to stay clear of 0b10 Research branches 4601 | -9/Exiles | Found AWS/Thermal 4604 | -9/Exiles | Found Modified TNC 4613 | -9/Exiles | Found Chronowheel 5039 | -9/Exiles | Attacked by the Exiles 5241 | -9/Exiles | Destroyed 8R-AWN 5262 | -9/Exiles | Lost 5 parts (1n1u3w) 5366 | -9/Exiles | Core integrity fell below 50% 5376 | -9/Exiles | Core integrity fell below 20% 5382 | -9/Exiles | Destroyed by DAS Turret with DAS Cannon Last Messages --------------- 05268_ Acquired Mni. Grenade Launcher. 05275_ The unstable cave ceiling collapses. 05285_ Acquired Lgt. Assault Rifle. 05316_ as-18656 destroyed. 05321_ Acquired 6 matter. 05324_ Acquired 8 matter. 05332_ Machine disabled. 05347_ Lgt. Treads destroyed. 05349_ Hvy. Armor Plating destroyed. 05359_ Ion Engine destroyed. 05361_ Lgt. Treads destroyed. 05361_ Shotgun destroyed. 05363_ Lgt. Treads destroyed. 05363_ Knocked back. 05364_ Acquired 19 matter. 05368_ Acquired 2 matter. 05371_ Hvy. Assault Rifle destroyed. 05373_ Minigun destroyed. 05373_ Knocked back. 05382_ Lgt. Assault Rifle destroyed. Map ----- +----------------------------------------------------+ | ?????????????????????????????????????"""" ## | | ????????????????????????????????????#""X" | | ????????????????????????????????????#" | | ????????????????????????????????????#" ## | | ????????????????????????????????????#""""""?# | | ????????????????????????????????????##"###??# | | ????????????????????????????????????????????# | | ????????????????????????????????????????????# | | ???????????????????????????????????????????## | | ???????????#######?????????????????????????#" | | ####???????#!!! "#?????????????????????????#" | | #""#??????# "#?????????????????????????#" | | ??????# "#?????????????????????????#" | | #????## " #?????????????#???????????#" | | #####" #???????????? ""?????????#" | | ##" "#????????????" """????????## | | # " #?###??????????" ?????????# | | # ## ##????????"" ?????????#" | | ??## # ## #????????"" "?????????#" | | ???## #???????? ""?????????#" | | ##### [!!= ##????????" "?????????##" | | !"" * ! # #????????# #????????##"" | | != ! = ! #####?##### ###?######"" | | ! != ![ # "##;#;X# #"###""""""" | | !==! !! % % """""" " "" | | """ # @ % " """ " | | """"""" # # % % " " | | ## #### | | # #######??##### ; | | ####????????????###;; | | ?????????????????#### | | #????????????????????# | | ?????????????????????# """""" | | ?????????????????????# ######""" | | ?????????????????????# ""##????#### | | ????????????????????? """##????????? | | ????????????????????#" """##?????????? | | ????????????????????#" ""#??????????? | | ????????????????????#" ########??### | | ????????????????????#"" t ## ####"" | | ????????????????????#"" """" | | ????????????????????##"" | | ?????????????????????#"""" | | ?????????????????????## | | ??????????????????????#" " | | ??????????????????????#"""" ""## ## | | ??????????????????????#"" ""#### #? | | ???????????????????????" """"##??# #? | | ???????????????????????""" """#??## ## | | ???????????????????????# ""##??#! " | +----------------------------------------------------+ Best States ------------- Heat Dissipation 28 Energy Generation 10 Energy Capacity 250 Matter Stores 300 Matter Capacity 300 Sight Range 16 Terrain Scan Density 10 Armor Coverage 600 Evasion (%) 41 Recoil Reduction 3 Item Schematics ----------------- None Robot Schematics ------------------ None Fabricated ------------ Nothing Repaired ---------- Nothing Alien Tech Used ----------------- None Achievements -------------- None Challenges ------------ None Game ------ Seed SuspensionSwarmThruster Manual? 0 Play Time 00:43:43 Cumulative 217.6 hours Start 2025.05.19 @ 11:33:37 End 2025.05.19 @ 12:32:43 Sessions 4 Manual Loads 0 Difficulty Rogue Special Mode None Game No. 120 Rogue 112 Adventurer 8 Explorer 0 Win Type - Total 7 Types 3/0/2/1/0/0/0/0/0/1 Lore% 80 Gallery% 76 Achievement% 64 Wizard Run 0 Options --------- Layout 2 ASCII 0 Keyboard 1 Movement Numpad Keybinds 1 Fullscreen 1 Font 48/Smallcaps Map View 50x44 Zoom Use 0% Tactical HUD 1 Map Filters NONE Filters NONE Steam 1 RUN: 71b62908-2561-4968-a9d0-6d16f284a0ce